[Event "10th Cesme Open-A 2024"]
[Site "Cesme"]
[Date "2024.06.27"]
[Round "6"]
[White "Grover, Sahaj"]
[Black "Fromm, Marius"]
[Result "0-1"]
[ECO "B45"]
[WhiteElo "2510"]
[BlackElo "2465"]
[Annotator "TA"]
[PlyCount "114"]
[EventDate "2024.06.23"]
[EventType "swiss"]
[EventCountry "TUR"]
[SourceTitle "playchess.com"]
[Source "ChessBase"]
[SourceQuality "1"]
[TimeControl "5400+30"]

{[%evp 41,114,0,0,0,0,-27,-10,-16,-18,-14,0,0,0,-8,0,0,0,-11,-25,-43,-39,-53,-54,-63,-73,-54,-55,-76,-101,-489,-391,-375,-388,-373,-391,-355,-18,-8,-8,-8,-8,-8,0,0,0,-8,-8,-8,-8,-8,0,-8,-8,-8,-8,-8,-8,-8,-8,-8,-8,-8,-8,-8,0,0,0,-29981,-29982,-29982,-29983,-29983,-29984,-29981,-29982]} 1. e4 {[%emt 0:02:00]} c5 {[%emt 0:01:00]} 2. Nf3 {[%emt 0:01:30]} e6 {[%emt 0:00:30]} 3. d4 {[%emt 0:00:30]} cxd4 {[%emt 0:00:30]} 4. Nxd4 {[%emt 0:00:30]} Nf6 {[%emt 0:00:00]} 5. Nc3 {[%emt 0:00:00]} Nc6 {[%emt 0:00:00]} 6. Qd3 {[%emt 0:00:00] B45: Sicilian Four Knights.} d5 {[%emt 0:05:30]} 7. exd5 {[%emt 0:00:00]} Nxd5 {[%emt 0:10:30]} 8. Nxd5 {[%emt 0:11:00]} Qxd5 {[%emt 0:01:30]} 9. Nb5 {[%emt 0:00:30]} Qe5+ {[%emt 0:16:30]} 10. Qe3 {[%emt 0:00:30]} Bd6 $146 {[%emt 0:00:30]} ({Predecessor:} 10... Bb4+ 11. c3 Ba5 12. Qxe5 Nxe5 13. Bf4 Nc6 14. Nd6+ Ke7 15. Nc4 f6 16. Bd6+ Kf7 17. Nxa5 Nxa5 {½-½ Shukhman,A (2282)-Zeliantsova,K (1961) RUS-chT (Women) 2024 (7.8)}) 11. f4 {[%emt 0:05:30]} Qxe3+ {[%emt 0:03:30]} 12. Bxe3 {[%emt 0:00:30]} Bb8 {[%emt 0:00:30]} 13. O-O-O {[%emt 0:01:30]} O-O {[%emt 0:00:30]} 14. g4 {[%emt 0:01:30]} Rd8 {[%emt 0:07:30]} 15. Bg2 {[%emt 0:10:30]} Bd7 {[%emt 0:03:30]} 16. Rd2 {[%emt 0:00:30]} Be8 {[%emt 0:03:30]} 17. Rhd1 {[%emt 0:12:30]} Rxd2 {[%emt 0:00:30]} 18. Rxd2 {[%emt 0:00:30]} h5 {[%emt 0:00:30]} 19. h3 {[%emt 0:07:30]} hxg4 {[%emt 0:11:30]} 20. hxg4 {[%emt 0:00:30]} a6 {[%emt 0:00:30]} 21. Bxc6 {[%emt 0:01:30]} (21. Nd6 $16) 21... Bxc6 $11 {[%emt 0:00:30]} 22. Rd8+ {[%emt 0:00:30]} Kh7 {[%emt 0:00:30]} 23. Nc7 {[%emt 0:00:30]} Ba7 $1 {[%emt 0:00:30]} 24. Nxa8 {[%emt 0:00:30]} (24. Rxa8 Bxe3+ 25. Kd1 Bxf4 $17) 24... Bxe3+ {[%emt 0:00:30]} 25. Kd1 $1 {[%emt 0:00:30]} Bf3+ {[%emt 0:00:30]} 26. Ke1 {[%emt 0:00:00]} Bxf4 {[%emt 0:00:30]} 27. Kf2 {[%emt 0:02:00]} Be4 {[%emt 0:11:30]} 28. Rd7 {[%emt 0:03:30]} (28. Rd4 $5 f5 $8 29. b3 $11) 28... Kg6 {[%emt 0:01:30]} 29. Rd4 {[%emt 0:02:30]} f5 {[%emt 0:00:00]} 30. gxf5+ {[%emt 0:02:30]} exf5 {[%emt 0:00:00]} 31. c4 {[%emt 0:01:30]} Be5 {[%emt 0:02:45]} 32. Rd2 {[%emt 0:00:00]} f4 {[%emt 0:00:18]} 33. Nb6 {[%emt 0:12:00]} Kf5 {[%emt 0:00:30]} 34. c5 {[%emt 0:00:30]} g5 {[%emt 0:02:55]} 35. Nc8 $2 {[%emt 0:06:08][%mdl 8192]} (35. Nc4 $17 Kf6 (35... g4 $2 36. Nd6+ Kf6 37. Nxe4+ $18) 36. Ke1) 35... Ke6 {[%emt 0:03:40]} (35... g4 $2 36. Nd6+ Ke6 (36... Bxd6 $2 37. cxd6 g3+ 38. Kf1 $18) 37. Nxe4 $18) 36. Nd6 {[%emt 0:02:52] [#]} Bc6 $1 {[%emt 0:01:03]} 37. Nc4 {[%emt 0:04:57]} Bf6 {[%emt 0:00:29]} (37... g4 $2 38. Re2 $18) 38. Re2+ {[%emt 0:03:08]} (38. Rd6+ Kf5 39. Kf1 g4 $19 (39... Be7 $2 40. Rh6 $19)) 38... Kd5 $2 {[%emt 0:03:01]} (38... Kf5 $19 39. Nd6+ Kg6 (39... Kg4 $2 40. b4 $19)) 39. Na5 $11 {[%emt 0:00:13]} g4 {[%emt 0:05:30]} 40. Nxc6 {[%emt 0:00:30]} bxc6 {[%emt 0:00:33]} 41. Re8 $1 {[%emt 0:01:51]} Bxb2 {[%emt 0:02:09]} 42. Rg8 {[%emt 0:00:05]} Bd4+ {[%emt 0:00:38]} (42... Kxc5 43. Rxg4 Bc1 44. Ke2 $14) 43. Kg2 {[%emt 0:00:21]} f3+ {[%emt 0:00:25]} (43... Kxc5 {simplifies} 44. Rxg4 Be3 45. Kf3 Kb5) 44. Kf1 {[%emt 0:00:29]} Kxc5 {[%emt 0:00:53]} (44... Bxc5 $5 45. Rg5+ $8 Kc4 46. Rxg4+ Bd4 $11) 45. Rxg4 {[%emt 0:00:06]} Kc4 {[%emt 0:00:06]} 46. Rf4 {[%emt 0:01:20]} (46. Rg3 $5) 46... f2 {[%emt 0:00:37]} 47. Ke2 {[%emt 0:00:05]} Kc3 {[%emt 0:00:42]} 48. Rf8 {[%emt 0:01:30]} a5 {[%emt 0:00:06]} 49. Rc8 {[%emt 0:03:21]} c5 {[%emt 0:00:30]} 50. Rb8 {[%emt 0:00:00]} c4 {[%emt 0:02:01]} 51. Rb5 {[%emt 0:00:41]} a4 {[%emt 0:01:04]} 52. a3 {[%emt 0:00:04]} f1=Q+ {[%emt 0:01:23]} (52... Be3 $5 53. Rb4 $8 Bc5 54. Rxa4 Kb3 $11) 53. Kxf1 {[%emt 0:00:02]} Kd3 {[%emt 0:00:41]} 54. Rb1 $2 {[%emt 0:00:30][%mdl 8192]} (54. Ke1 $11) 54... c3 {[%emt 0:00:00]} ({Inferior is} 54... Kc2 55. Rb4 Kd3 56. Rxa4 $11) 55. Rd1+ {[%emt 0:00:00]} Ke3 {[%emt 0:00:31]} 56. Re1+ {[%emt 0:01:51] [#]} Kd2 $1 {[%emt 0:00:03]} 57. Re2+ {[%emt 0:00:39]} Kd3 {[%emt 0:00:20]} 0-1

[Event "10th Cesme Open-A 2024"]
[Site "Cesme"]
[Date "2024.06.27"]
[Round "6"]
[White "Gholami, Aryan"]
[Black "Pacher, Milan"]
[Result "1-0"]
[ECO "D02"]
[WhiteElo "2481"]
[BlackElo "2387"]
[Annotator "TA"]
[PlyCount "99"]
[EventDate "2024.06.23"]
[EventType "swiss"]
[EventCountry "TUR"]
[SourceTitle "playchess.com"]
[Source "ChessBase"]
[SourceQuality "1"]
[TimeControl "5400+30"]

{[%evp 9,99,-7,12,12,27,3,8,0,14,0,0,0,0,0,0,0,0,12,12,12,9,13,10,0,51,55,50,56,64,54,62,55,80,74,74,69,72,66,84,75,156,80,145,140,139,139,139,131,130,128,122,137,133,126,127,142,131,114,145,155,141,153,149,114,130,120,344,351,375,303,308,327,290,322,367,383,372,364,476,256,254,256,256,254,232,211,294,294,222,213,1026,938]} 1. d4 {[%emt 0:01:00]} d5 {[%emt 0:01:00]} 2. Bf4 {[%emt 0:00:00]} c5 {[%emt 0:00:30]} 3. e3 {[%emt 0:00:00]} Nc6 {[%emt 0:00:00]} 4. Nf3 {[%emt 0:00:30]} Nf6 {[%emt 0:01:00]} 5. Nbd2 {[%emt 0:00:30]} cxd4 {[%emt 0:00:30]} 6. exd4 {[%emt 0:00:30]} Bf5 {[%emt 0:00:00]} 7. c3 {[%emt 0:02:30]} e6 {[%emt 0:00:00]} 8. Bb5 {[%emt 0:05:30] The position is equal.} Bd6 {[%emt 0:00:00]} 9. Bg3 {[%emt 0:05:30]} O-O {[%emt 0:00:00]} 10. O-O {[%emt 0:00:30]} Bxg3 {[%emt 0:06:30]} 11. hxg3 {[%emt 0:01:30]} Qb6 {[%emt 0:00:30]} 12. Bxc6 {[%emt 0:06:30]} bxc6 {[%emt 0:01:30]} 13. b4 {[%emt 0:00:30]} a5 {[%emt 0:00:30]} 14. a3 {[%emt 0:00:00]} Ne4 {[%emt 0:00:00]} 15. Nxe4 {[%emt 0:02:00]} Bxe4 {[%emt 0:00:00]} 16. Nd2 {[%emt 0:03:30]} Bg6 {[%emt 0:07:30]} (16... Bd3 $11 17. Re1 axb4) 17. Nb3 $14 {[%emt 0:01:30]} axb4 {[%emt 0:00:30]} 18. cxb4 {[%emt 0:03:30]} f6 {[%emt 0:01:30]} 19. Qd2 {[%emt 0:00:30]} e5 {[%emt 0:02:30]} 20. Rfc1 {[%emt 0:00:30]} Ra7 {[%emt 0:04:30]} 21. Rc5 {[%emt 0:05:30]} Be8 {[%emt 0:02:30]} 22. Qc3 {[%emt 0:01:30]} Re7 {[%emt 0:00:30]} 23. Re1 {[%emt 0:06:30]} Qb8 {[%emt 0:07:30]} 24. Rc1 {[%emt 0:03:30]} e4 {[%emt 0:01:30]} (24... Qb6 $142) 25. Qe3 {[%emt 0:01:30]} (25. Na5 $142 $1) 25... f5 {[%emt 0:05:30]} ({Black should play} 25... Qa8) 26. Na5 $16 {[%emt 0:01:30]} f4 {[%emt 0:00:30]} 27. gxf4 {[%emt 0:00:30]} Qxf4 {[%emt 0:00:00]} 28. Nxc6 {[%emt 0:03:30]} Bxc6 {[%emt 0:00:00]} 29. Qxf4 {[%emt 0:04:30]} Rxf4 {[%emt 0:00:30]} 30. Rxc6 {[%emt 0:00:30][%mdl 4096] Endgame. b5 would now be deadly. KRR-KRR} e3 {[%emt 0:00:30]} 31. fxe3 {[%emt 0:00:30]} Rxe3 {[%emt 0:00:00]} 32. R6c3 {[%emt 0:00:00]} Re2 {[%emt 0:00:00]} 33. Rf1 {[%emt 0:00:00]} Rxf1+ {[%emt 0:00:30]} 34. Kxf1 {[%emt 0:00:00] KR-KR} Rb2 {[%emt 0:00:30]} 35. g3 {[%emt 0:14:00]} h5 {[%emt 0:07:30]} 36. Ke1 {[%emt 0:00:30]} g5 {[%emt 0:00:30][%cal Bg7g5,Bg5h4,Bh4h3,Bh3h2][%mdl 32]} 37. Kd1 $1 {[%emt 0:00:30] Kc1 is the strong threat.} h4 $2 {[%emt 0:00:30] Loses the game.} (37... Kf7 $16 {was called for.} 38. Kc1 Rf2) 38. gxh4 $18 {[%emt 0:00:30]} (38. Kc1 Rg2 39. gxh4 gxh4 $11) 38... gxh4 {[%emt 0:00:00]} 39. Kc1 {[%emt 0:07:30]} Rg2 {[%emt 0:00:00]} 40. b5 {[%emt 0:01:30]} Rg3 {[%emt 0:02:30]} 41. Rc8+ {[%emt 0:00:30]} Kg7 {[%emt 0:00:30][%cal Oh4h3]} 42. Kb2 {[%emt 0:00:00]} h3 {[%emt 0:01:30]} 43. Rc1 {[%emt 0:01:00] Hoping for a4.} Kf7 {[%emt 0:00:30]} 44. a4 {[%emt 0:02:57]} (44. Rf1+ $142 $1 Ke6 45. a4) 44... h2 {[%emt 0:05:30]} 45. Rh1 {[%emt 0:00:30]} Rg2+ {[%emt 0:00:30]} 46. Kb3 {[%emt 0:00:34] aiming for b6.} Ke6 {[%emt 0:00:00] [#]} 47. Kb4 $1 {[%emt 0:00:06]} Kd6 {[%emt 0:01:00] [#]} 48. Ka5 $1 {[%emt 0:00:32] Black must now prevent b6.} Ra2 {[%emt 0:01:30]} 49. b6 {[%emt 0:00:50]} Kc6 $2 {[%emt 0:00:30]} (49... Kd7 50. Kb5 Kc8) 50. Rc1+ {[%emt 0:00:05] Weighted Error Value: White=0.11 (very precise) /Black=0.19 (very precise) .  Loses game:     	---       	Black=1      Mistake:       	White=2     	Black=4      Inaccurate:     	---       	Black=2      OK:         	White=21    	Black=13     Best:        	White=3     	Black=6      Strong:       	White=2     	---} 1-0

[Event "10th Cesme Open-A 2024"]
[Site "Cesme"]
[Date "2024.06.27"]
[Round "6"]
[White "Annaberdiyev, Meylis"]
[Black "Erten, Kerem"]
[Result "0-1"]
[ECO "C07"]
[WhiteElo "2467"]
[BlackElo "2277"]
[Annotator "TA"]
[PlyCount "104"]
[EventDate "2024.06.23"]
[EventType "swiss"]
[EventCountry "TUR"]
[SourceTitle "playchess.com"]
[Source "ChessBase"]
[SourceQuality "1"]
[TimeControl "5400+30"]

{[%evp 12,103,14,3,0,0,16,14,27,23,36,27,36,37,37,31,36,41,44,34,35,34,25,24,36,20,25,29,21,16,15,15,20,17,24,22,18,19,28,20,56,-22,-30,-76,-88,-104,-102,-92,-105,-136,-131,-124,-162,-213,-214,-208,-49,-457,-443,-520,-520,-520,-512,-568,-545,-649,-574,-593,-589,-616,-578,-723,-675,-737,-736,-871,-736,-695,-605,-712,-708,-1042,-1001,-1039,-1037,-1265,-1211,-1645,-1644,-1588,-1052,-4163,-1933,-29982]} 1. e4 {[%emt 0:01:00]} e6 {[%emt 0:01:00]} 2. d4 {[%emt 0:00:30]} d5 {[%emt 0:00:30]} 3. Nd2 {[%emt 0:00:30]} c5 {[%emt 0:00:30]} 4. c3 {[%emt 0:00:30]} cxd4 {[%emt 0:05:30]} 5. cxd4 {[%emt 0:00:30]} Nc6 {[%emt 0:01:30]} 6. Ngf3 {[%emt 0:00:00]} dxe4 {[%emt 0:02:30]} 7. Nxe4 {[%emt 0:00:00]} Nf6 {[%emt 0:00:30]} 8. Bd3 {[%emt 0:00:30]} Nxe4 {[%emt 0:12:30]} 9. Bxe4 {[%emt 0:00:30]} Bb4+ {[%emt 0:00:30] The position is equal.} 10. Bd2 {[%emt 0:00:00]} Bxd2+ {[%emt 0:04:30]} 11. Qxd2 {[%emt 0:01:00]} O-O {[%emt 0:00:30]} 12. Bxc6 {[%emt 0:05:30]} bxc6 {[%emt 0:00:30]} 13. O-O {[%emt 0:00:00][%cal Bh1f1,Bf1c1,Bc1c5][%mdl 32]} Qd6 {[%emt 0:03:30]} 14. Rfc1 {[%emt 0:00:00]} Rd8 {[%emt 0:00:30][%cal Oc6c5]} 15. Qa5 {[%emt 0:08:30][%cal Oc1c6]} Bd7 {[%emt 0:01:30] Black is weak on the dark squares} 16. Rc5 {[%emt 0:03:30]} Be8 {[%emt 0:01:30]} 17. Rac1 {[%emt 0:06:30]} Qf4 {[%emt 0:05:30]} 18. Qc3 {[%emt 0:01:30]} Rd5 {[%emt 0:02:30]} 19. Qe3 {[%emt 0:00:30]} Qd6 {[%emt 0:01:30]} 20. b3 {[%emt 0:04:30]} Rd8 {[%emt 0:04:30][%cal Ba8d8,Bd8d6,Bd6e6][%mdl 32]} 21. h3 {[%emt 0:00:30]} f6 {[%emt 0:02:30]} 22. R5c4 {[%emt 0:05:30]} Qe7 {[%emt 0:04:30]} 23. Re1 {[%emt 0:03:30]} R8d6 {[%emt 0:03:30]} 24. Nd2 {[%emt 0:01:30]} Bg6 {[%emt 0:01:30]} 25. Ra4 {[%emt 0:03:30]} e5 {[%emt 0:03:30][%cal Oe7d8]} 26. Nc4 {[%emt 0:00:30]} (26. f4 $1 $14) 26... Re6 $1 $11 {[%emt 0:00:30][%cal Og6f5]} 27. dxe5 {[%emt 0:00:30]} (27. f4 $11 Rxd4 28. Nxe5 Rxa4 29. Nxg6 Rxe3 (29... hxg6 30. Qxe6+ Qxe6 31. Rxe6 $11) 30. Nxe7+ Rxe7 31. Rxe7 Rxa2 (31... Rxf4 32. Rxa7 Rd4 33. Kf1 $11) 32. Rc7) 27... Rdxe5 {[%emt 0:01:30]} 28. Nxe5 {[%emt 0:01:30]} Rxe5 {[%emt 0:00:30]} 29. Rxa7 {[%emt 0:00:30]} Qe8 {[%emt 0:00:30][%cal Oe8b8]} 30. a4 {[%emt 0:06:30][%cal Ob3b4]} Rxe3 {[%emt 0:06:30]} 31. Rxe3 {[%emt 0:00:30] [#]} Be4 $1 {[%emt 0:01:30]} 32. a5 {[%emt 0:07:30]} (32. f3 $142 Qb8 33. Re7) 32... f5 $19 {[%emt 0:01:30]} 33. a6 {[%emt 0:13:30]} c5 $2 {[%emt 0:01:30]} (33... Qd8 $19 {And now ...c5 would win.} 34. Re1 c5) 34. Rc7 $2 {[%emt 0:13:41][%mdl 8192] White does not recover from this.} (34. f3 $15 Qd8 (34... Qb8 35. Re7 $11) 35. fxe4) 34... Qd8 {[%emt 0:02:30]} 35. Rxe4 {[%emt 0:00:04] [#] Ree7 would now be deadly.} Qxc7 {[%emt 0:00:30][%mdl 4096] Endgame. KQ-KR} 36. Ra4 {[%emt 0:00:05]} Qa7 {[%emt 0:01:30]} 37. Kf1 {[%emt 0:04:48]} Kf7 {[%emt 0:00:30] ...Qd7 is the strong threat.} 38. Ke2 {[%emt 0:00:12]} Ke6 {[%emt 0:00:30][%cal Oc5c4]} 39. Kd3 {[%emt 0:00:34]} Kd5 {[%emt 0:01:30]} 40. Kc3 {[%emt 0:00:10]} g6 {[%emt 0:03:00]} 41. f4 {[%emt 0:04:50]} Kc6 {[%emt 0:01:47]} 42. g3 {[%emt 0:02:51]} Kc7 {[%emt 0:02:00]} 43. Ra3 {[%emt 0:02:37]} Kb6 {[%emt 0:01:45] Hoping for ...Qg7+.} 44. Kc2 {[%emt 0:00:30]} Kc6 {[%emt 0:01:53]} 45. Ra4 {[%emt 0:00:30]} Kc7 {[%emt 0:00:46]} 46. Ra3 {[%emt 0:00:42]} Kb8 {[%emt 0:00:23]} 47. Ra5 {[%emt 0:00:53]} Ka8 {[%emt 0:00:54] aiming for ...Qe7.} 48. Ra4 {[%emt 0:00:28]} Qe7 {[%emt 0:00:57] Threatens to win with ...Qe2+.} 49. Kd3 {[%emt 0:00:16]} Qe6 {[%emt 0:00:26]} 50. Kc3 {[%emt 0:00:14]} Ka7 {[%emt 0:00:42]} 51. h4 {[%emt 0:00:34]} Qe3+ {[%emt 0:00:40]} 52. Kc4 {[%emt 0:00:01]} Kb6 {[%emt 0:01:08] Weighted Error Value: White=0.44/Black=0.13 (very precise) .  Loses game:     	White=1     	---        Mistake:       	White=3     	Black=1      Inaccurate:     	---       	Black=1      OK:         	White=10    	Black=14     Best:        	White=1     	Black=2      Strong:       	---       	Black=2} 0-1

[Event "10th Cesme Open-A 2024"]
[Site "Cesme"]
[Date "2024.06.27"]
[Round "6"]
[White "Durak, Can"]
[Black "Ebrahimi Herab, Hamidreza"]
[Result "0-1"]
[ECO "D91"]
[WhiteElo "2442"]
[BlackElo "2333"]
[Annotator "TA"]
[PlyCount "88"]
[EventDate "2024.06.23"]
[EventType "swiss"]
[EventCountry "TUR"]
[SourceTitle "playchess.com"]
[Source "ChessBase"]
[SourceQuality "1"]
[TimeControl "5400+30"]

{[%evp 19,88,10,25,14,33,39,27,35,67,76,68,55,70,66,55,62,62,55,75,68,67,43,62,69,72,49,179,185,165,176,170,176,252,253,175,0,12,-191,-188,-190,-203,-187,-164,-296,-251,-237,-283,-203,-270,-260,-110,-299,-296,-306,-269,-372,-294,-400,-409,-401,-370,-385,-304,-403,-346,-430,-416,-406,-340,-29963,-12245]} 1. d4 {[%emt 0:03:00]} Nf6 {[%emt 0:01:00]} 2. c4 {[%emt 0:00:30]} g6 {[%emt 0:00:30]} 3. Nc3 {[%emt 0:00:30]} d5 {[%emt 0:00:30]} 4. Nf3 {[%emt 0:00:30]} Bg7 {[%emt 0:00:30]} 5. Bg5 {[%emt 0:00:00]} Ne4 {[%emt 0:00:30]} 6. Bf4 {[%emt 0:00:00]} Nxc3 {[%emt 0:00:30]} 7. bxc3 {[%emt 0:00:30]} c5 {[%emt 0:00:30]} 8. e3 {[%emt 0:00:00]} Nc6 {[%emt 0:00:30]} 9. cxd5 {[%emt 0:00:00]} Qxd5 {[%emt 0:00:30]} 10. Be2 {[%emt 0:00:30]} O-O {[%emt 0:02:30]} 11. O-O {[%emt 0:01:30]} Bf5 {[%emt 0:03:30]} 12. c4 {[%emt 0:02:30]} Qd8 {[%emt 0:10:30] [#]} 13. d5 {[%emt 0:00:30] White has an edge.} Nb4 {[%emt 0:02:30] [#]} (13... Na5 14. Rc1) 14. a3 $1 {[%emt 0:02:30]} Na6 {[%emt 0:00:30]} 15. Nd2 {[%emt 0:00:00]} e5 {[%emt 0:03:30]} 16. Bg3 {[%emt 0:02:00]} Bd7 {[%emt 0:02:30]} 17. Rb1 {[%emt 0:07:30]} b6 {[%emt 0:03:30]} 18. f4 {[%emt 0:01:30]} exf4 {[%emt 0:03:30]} 19. Bxf4 {[%emt 0:02:30]} ({Much worse is} 19. exf4 Bf5 $11) 19... f5 {[%emt 0:03:30]} 20. e4 {[%emt 0:05:30]} fxe4 {[%emt 0:05:30]} 21. Nxe4 {[%emt 0:00:30]} Bf5 {[%emt 0:01:30]} 22. Bd3 {[%emt 0:07:30]} Bxe4 {[%emt 0:08:30]} (22... Nc7 $14) 23. Bxe4 $18 {[%emt 0:00:30] d6 is the strong threat.} Qe7 {[%emt 0:00:00]} 24. Qd3 {[%emt 0:00:30] Strongly threatening d6.} Rae8 {[%emt 0:00:00]} 25. Rbe1 {[%emt 0:00:30] And now d6 would win.} Bd4+ {[%emt 0:02:30]} (25... Qd8 $142 26. d6 Nb8) 26. Kh1 {[%emt 0:00:30] aiming for d6.} Nb8 {[%emt 0:00:30]} 27. Bxb8 {[%emt 0:09:30]} ({Better is} 27. d6 $18 {Intending Bd5+ and mate.} Qf6 28. Bd5+ Kh8 29. Rxe8 Rxe8 30. Bg3) 27... Rxb8 {[%emt 0:00:30] [#]} 28. Bxg6 $2 {[%emt 0:00:30]} Rxf1+ $19 {[%emt 0:00:30]} 29. Rxf1 {[%emt 0:00:30][%cal Og6h7] Bxh7+! would now be deadly.} (29. Qxf1 $2 {too greedy.} Rf8 $19) 29... hxg6 {[%emt 0:00:30]} 30. Qxg6+ {[%emt 0:00:30]} Bg7 {[%emt 0:00:30]} 31. d6 {[%emt 0:00:30] [#]} (31. g3 $142) 31... Rf8 $1 {[%emt 0:02:30]} 32. Rxf8+ {[%emt 0:05:30]} Qxf8 {[%emt 0:00:00][%cal Rf8f1]} 33. h4 {[%emt 0:00:30] Threatens to win with d7.} Qf7 {[%emt 0:03:00]} 34. Qg4 {[%emt 0:03:30]} Qf1+ {[%emt 0:02:30]} 35. Kh2 {[%emt 0:00:30]} Qf6 {[%emt 0:02:30]} 36. d7 {[%emt 0:01:30]} Kf8 {[%emt 0:01:30]} 37. Qg3 {[%emt 0:10:30]} Ke7 {[%emt 0:00:30]} 38. d8=B+ {[%emt 0:00:30]} Kxd8 {[%emt 0:00:30]} 39. Qb8+ {[%emt 0:00:30]} Ke7 {[%emt 0:00:00]} 40. Qxa7+ {[%emt 0:00:30]} Kf8 {[%emt 0:00:00]} 41. Qa8+ {[%emt 0:00:30]} Kf7 {[%emt 0:00:00]} 42. Qb7+ {[%emt 0:01:30] [#]} Kg6 $1 {[%emt 0:00:00]} 43. Qe4+ {[%emt 0:01:30]} Qf5 {[%emt 0:02:30]} 44. Qe2 {[%emt 0:07:30] [#]} (44. Qe8+ $19 Kh7 45. Qe3) 44... Qe5+ $1 {[%emt 0:00:30] Weighted Error Value: White=0.65/Black=0.12 (very precise) .  Loses game:     	White=2     	---        Missed win:     	White=1     	---        Mistake:       	White=2     	Black=2      Inaccurate:     	White=3     	Black=1      OK:         	White=13    	Black=12     Best:        	White=1     	Black=10     Strong:       	---       	Black=2} 0-1

[Event "10th Cesme Open-A 2024"]
[Site "Cesme"]
[Date "2024.06.27"]
[Round "6"]
[White "Yermolinsky, Alex"]
[Black "Yurtseven, Melih"]
[Result "1/2-1/2"]
[ECO "D30"]
[WhiteElo "2421"]
[BlackElo "2333"]
[Annotator "RC"]
[PlyCount "86"]
[EventDate "2024.06.23"]
[EventType "swiss"]
[EventCountry "TUR"]
[SourceTitle "playchess.com"]
[Source "ChessBase"]
[SourceQuality "1"]
[TimeControl "5400+30"]

1. d4 {[%emt 0:01:00]} Nf6 {[%emt 0:06:00]} 2. c4 {[%emt 0:00:00]} e6 {[%emt 0:00:30]} 3. Nf3 {[%emt 0:00:00]} d5 {[%emt 0:01:30]} 4. Bg5 {[%emt 0:00:30]} h6 {[%emt 0:01:30]} 5. Bxf6 {[%emt 0:02:30]} Qxf6 {[%emt 0:00:00]} 6. e3 {[%emt 0:06:30]} c6 {[%emt 0:01:00]} 7. Nbd2 {[%emt 0:08:30]} Nd7 {[%emt 0:02:30]} 8. Be2 {[%emt 0:04:30]} g5 {[%emt 0:08:30]} 9. O-O {[%emt 0:00:30]} Bg7 {[%emt 0:10:30]} 10. Rc1 {[%emt 0:01:30]} Qe7 {[%emt 0:07:30]} 11. Nb3 {[%emt 0:06:30]} O-O {[%emt 0:04:30]} 12. Qd2 {[%emt 0:01:30]} f5 {[%emt 0:00:30]} 13. a3 {[%emt 0:08:30]} h5 {[%emt 0:12:30]} 14. Qb4 {[%emt 0:04:30]} Qd8 {[%emt 0:04:30]} 15. Nc5 {[%emt 0:05:30]} a5 {[%emt 0:05:30]} 16. Qd2 {[%emt 0:05:30]} Nxc5 {[%emt 0:00:30]} 17. dxc5 {[%emt 0:00:30]} g4 {[%emt 0:01:30]} 18. Ne1 {[%emt 0:03:30]} dxc4 {[%emt 0:11:52]} 19. Qxd8 {[%emt 0:09:30]} Rxd8 {[%emt 0:00:30]} 20. Bxc4 {[%emt 0:00:30]} Bxb2 {[%emt 0:00:10]} 21. Rc2 {[%emt 0:03:30]} Bxa3 {[%emt 0:11:29]} 22. Nd3 {[%emt 0:00:30]} Rb8 {[%emt 0:00:00]} 23. f3 {[%emt 0:08:43]} Kg7 {[%emt 0:02:13]} 24. Rb1 {[%emt 0:03:13]} Kf6 {[%emt 0:02:06]} 25. Rb3 {[%emt 0:01:15]} Bb4 {[%emt 0:00:30]} 26. Nxb4 {[%emt 0:00:30]} axb4 {[%emt 0:00:30]} 27. Rxb4 {[%emt 0:00:00]} Ra8 {[%emt 0:00:00]} 28. Kf2 {[%emt 0:00:41]} e5 {[%emt 0:01:10]} 29. h3 {[%emt 0:01:21]} gxh3 {[%emt 0:01:02]} 30. gxh3 {[%emt 0:00:01]} Ra1 {[%emt 0:00:34]} 31. Be2 {[%emt 0:02:25]} Rd5 {[%emt 0:01:39]} 32. f4 {[%emt 0:02:30]} exf4 {[%emt 0:00:31]} 33. Rxf4 {[%emt 0:02:20]} Ra5 {[%emt 0:00:30]} 34. Rfc4 {[%emt 0:00:00]} h4 {[%emt 0:00:17]} 35. Bf3 {[%emt 0:03:31]} Re5 {[%emt 0:00:05]} 36. Rxh4 {[%emt 0:00:51]} Rexc5 {[%emt 0:02:30]} 37. Rd2 {[%emt 0:01:30]} Rc3 {[%emt 0:00:40]} 38. Rh7 {[%emt 0:03:29]} Raa3 {[%emt 0:00:50]} 39. Rd6+ {[%emt 0:00:58]} Ke5 {[%emt 0:00:36]} 40. Rdh6 {[%emt 0:00:03]} Rxe3 {[%emt 0:01:22]} 41. Re7+ {[%emt 0:00:19]} Kf4 {[%emt 0:00:19]} 42. Rh4+ {[%emt 0:00:49]} Kg5 {[%emt 0:00:30]} 43. Rh5+ {[%emt 0:00:30]} Kf4 {[%emt 0:00:00]} 1/2-1/2